bitfinex-derivatives/quotes_ETHF0:USTF0_20251211
["timestamp","ask_amount","ask_price","bid_price","bid_amount"]
[1765488138967,3.2078,3245.1,3245.0,0.00378649]
[1765488139661,3.2078,3245.5,3245.0,0.00378649]
[1765488139961,3.2078,3245.5,3245.3,0.15405]
[1765488140161,0.00462207,3245.6,3245.4,0.15405]
[1765488140460,0.00462207,3245.6,3245.5,0.15404]
[1765488142760,3.2078,3246.4,3245.8,0.15403]
[1765488143869,3.21242207,3246.4,3245.9,0.15402]
[1765488145667,0.00462207,3246.4,3246.1,3.2078]
[1765488145865,0.00233368,3247.2,3246.4,0.154]
[1765488146063,0.00233368,3247.2,3246.6,5.1699]
[1765488146371,0.00233368,3247.2,3246.6,3.2078]
[1765488146870,0.00233368,3247.2,3246.6,3.21242207]
[1765488147171,0.00695575,3247.2,3246.6,3.21242207]
[1765488148470,0.00695575,3247.2,3246.6,5.17452207]
[1765488149670,0.00695575,3247.2,3246.6,0.00462207]
[1765488150766,3.2078,3246.8,3246.6,0.00462207]
[1765488151368,3.21475575,3247.2,3246.7,6.8345]
[1765488151565,3.21475575,3247.2,3246.6,0.00462207]
[1765488151966,3.4031,3246.7,3246.6,0.00462207]
[1765488152861,6.9183,3245.9,3245.8,3.2078]
[1765488153469,6.9183,3245.9,3245.4,3.2078]
[1765488155073,6.9183,3245.9,3245.4,3.36185]
[1765488155268,6.9183,3245.9,3245.5,0.15404]
[1765488155862,3.4031,3245.9,3245.5,0.15404]
[1765488156273,0.15398,3246.9,3245.5,0.15404]
[1765488156274,3.2078,3246.4,3246.3,6.9885]
[1765488156476,3.2078,3246.8,3246.5,0.15399]
[1765488156775,3.4031,3246.6,3246.5,0.15399]
[1765488157173,6.9183,3246.6,3246.5,0.15399]
[1765488159976,0.15393,3247.8,3246.2,3.2078]
[1765488159977,3.21475575,3247.2,3247.1,3.54537]
[1765488160276,6.61785575,3247.2,3247.1,0.15397]
[1765488160770,0.00695575,3247.2,3247.1,6.98847]
[1765488161368,0.00695575,3247.2,3247.1,0.15397]
[1765488162868,0.00695575,3247.2,3247.1,6.98847]
[1765488163775,0.00695575,3247.2,3247.1,12.98847]
[1765488164075,3.2078,3247.7,3247.1,6.98847]
[1765488164972,3.21549949,3247.7,3247.1,6.99309207]
[1765488167081,3.4031,3247.2,3247.1,0.00462207]
[1765488167582,6.9183,3247.2,3247.1,0.00462207]
[1765488168476,3.4031,3247.2,3247.1,0.00462207]
[1765488169777,6.9183,3247.2,3247.1,0.00462207]
[1765488170271,3.21549949,3247.7,3247.1,6.26222207]
[1765488170481,6.34989949,3247.7,3247.2,1.89126]
[1765488170883,3.1344,3247.3,3247.2,0.15396]
[1765488171183,6.2808,3247.3,3247.2,0.15396]
[1765488173087,6.2808,3247.3,3247.1,0.00462207]
[1765488173088,3.21549949,3247.7,3247.3,0.15396]
[1765488173292,3.21549949,3247.7,3247.3,0.15777258]
[1765488174185,3.1344,3247.4,3247.3,0.15777258]
[1765488174385,6.2808,3247.4,3247.3,0.15777258]
[1765488175285,3.21549949,3247.7,3247.3,3.23147258]
[1765488175484,3.21549949,3247.7,3247.4,0.15395]
[1765488175686,3.1344,3247.5,3247.4,0.15395]
[1765488175886,6.2808,3247.5,3247.4,0.15395]
[1765488176683,3.1344,3247.5,3247.4,0.15395]
[1765488176985,3.21549949,3247.7,3247.5,0.15394]
[1765488176986,6.2808,3247.6,3247.5,0.15394]
[1765488179198,3.21549949,3247.7,3247.6,6.41154]
[1765488179506,0.00769949,3247.7,3247.6,6.41154]
[1765488179796,0.00769949,3247.7,3247.5,0.25217345]
[1765488179797,3.2078,3248.1,3248.0,6.41152]
[1765488180000,3.2078,3248.6,3248.0,6.2576]
[1765488180298,3.2078,3248.6,3248.5,6.2576]
[1765488180704,3.21153736,3248.6,3248.5,6.4115]
[1765488181103,0.00373736,3248.6,3248.5,6.4115]
[1765488181601,3.13813736,3248.6,3248.5,0.1539]
[1765488181798,6.28453736,3248.6,3248.5,0.1539]
[1765488182600,0.00373736,3248.6,3248.5,3.2276]
[1765488182801,0.00373736,3248.6,3248.5,6.4115]
[1765488183608,3.1344,3249.2,3248.5,3.2078]
[1765488184308,3.2078,3249.4,3248.8,0.15388]
[1765488184507,9.4886,3248.9,3248.8,0.00462207]
[1765488184708,6.2808,3248.3,3248.2,0.15391]
[1765488184903,3.1344,3248.3,3248.2,0.15391]
[1765488185407,6.2808,3248.3,3248.2,0.15391]
[1765488189208,6.2808,3248.0,3247.9,0.00462207]
[1765488189416,9.4886,3248.0,3247.9,0.00462207]
[1765488190506,9.4886,3248.0,3247.9,0.15855207]
[1765488192812,3.21242207,3248.6,3248.5,6.4115]
[1765488193012,6.34682207,3248.6,3248.5,3.2276]
[1765488194715,9.49322207,3248.6,3248.5,0.1539]
[1765488195107,0.00462207,3248.6,3248.5,5.9966]
[1765488195314,0.00287138,3249.4,3249.3,5.99656]
[1765488195502,3.2078,3249.8,3249.3,5.99656]
[1765488195503,3.2078,3249.8,3249.7,5.99654]
[1765488195707,5.48257873,3250.3,3249.7,5.99654]
[1765488195903,3.0541,3250.0,3249.9,0.15383]
[1765488196510,3.05641439,3250.0,3249.9,0.15768621]
[1765488196712,0.00231439,3250.0,3249.9,3.01608621]
[1765488196910,3.05641439,3250.0,3249.9,0.15768621]
[1765488197317,0.00231439,3250.0,3249.9,6.00038621]
[1765488197517,1.7989,3250.8,3250.1,0.15382]
[1765488197820,3.0541,3250.2,3250.1,0.15382]
[1765488198318,6.1903,3250.2,3250.1,0.15382]
[1765488198517,6.1903,3250.0,3249.9,0.00385621]
[1765488198715,3.2078,3250.0,3249.6,0.00462207]
[1765488198913,5.7712,3249.9,3249.8,0.15384]
[1765488199716,5.7712,3249.9,3249.8,0.15744728]
[1765488202123,5.7712,3249.7,3249.6,0.00462207]
[1765488202719,5.7712,3249.5,3249.4,3.07299527]
[1765488203025,5.7712,3248.7,3248.6,0.15389]
[1765488203323,5.7712,3248.7,3248.6,0.157403]
[1765488204321,2.9271,3248.7,3248.6,0.157403]
[1765488204835,5.77579812,3249.0,3248.9,0.15388]
[1765488205022,0.00459812,3249.0,3248.9,5.99468]
[1765488205627,0.00459812,3249.0,3248.9,9.20248]
[1765488210037,3.2078,3250.1,3249.5,5.8408]
[1765488210537,5.7712,3249.9,3249.8,0.15383]
[1765488211037,3.2078,3250.1,3250.0,3.06893]
[1765488211241,0.00226568,3250.2,3250.1,3.06892]
[1765488211440,2.92936568,3250.2,3250.1,3.06892]
[1765488211737,2.92936568,3250.2,3250.1,0.15382]
[1765488212134,2.92936568,3250.2,3250.1,9.20242]
[1765488212135,0.00226568,3250.2,3250.1,9.20242]
[1765488215240,3.2078,3250.9,3250.8,0.15379]
[1765488215241,5.7712,3250.9,3250.8,0.15379]
[1765488215541,5.7712,3250.6,3250.5,0.00461489]
[1765488215745,8.04597873,3250.6,3250.5,0.00461489]
[1765488216338,8.04869057,3250.6,3250.5,0.00461489]
[1765488218338,0.15377,3251.3,3250.9,0.15378]
[1765488218339,3.2078,3251.3,3250.9,0.15378]
[1765488218541,5.7712,3251.0,3250.9,0.15378]
[1765488219336,5.7712,3251.0,3250.9,0.15743225]
[1765488219337,8.04597873,3251.0,3250.9,0.15743225]
[1765488219542,8.04984658,3251.0,3250.9,0.15743225]
[1765488220147,5.77506785,3251.0,3250.9,0.15743225]
[1765488220446,2.93096785,3251.0,3250.9,3.07253225]
[1765488220843,0.00386785,3251.0,3250.9,5.99823225]
[1765488221238,5.77506785,3251.0,3250.9,0.15743225]
[1765488221745,2.93096785,3251.0,3250.9,0.15743225]
[1765488222139,5.77506785,3251.0,3250.9,0.15743225]
[1765488223344,5.77506785,3251.0,3250.9,0.00365225]
[1765488223644,5.7712,3250.6,3250.5,0.00461489]
[1765488224549,5.7712,3250.6,3250.5,0.00699979]
[1765488225644,5.7712,3250.4,3250.3,0.15381]
[1765488225847,5.7712,3249.7,3249.6,0.15385]
[1765488226051,2.9271,3249.7,3249.6,3.06895]
[1765488226651,2.9271,3249.7,3249.6,3.07248576]
[1765488226846,5.7712,3249.7,3249.6,0.15738576]
[1765488229046,5.7712,3249.7,3249.6,0.00353576]
[1765488229250,2.6845,3248.8,3248.7,0.15389]
[1765488229453,2.6845,3248.8,3248.7,2.94799]
[1765488229646,5.48257873,3249.3,3248.7,5.57379]
[1765488229840,5.48257873,3249.3,3248.8,0.15388]
[1765488230146,3.2078,3249.2,3248.9,0.15388]
[1765488230346,2.6845,3249.0,3248.9,0.15388]
[1765488230545,3.2078,3249.2,3248.9,5.57378]
[1765488230748,5.3897,3249.0,3248.9,0.15388]
[1765488230946,6.0056,3249.0,3248.9,0.15388]
[1765488231651,5.3897,3249.0,3248.9,0.15388]
[1765488233152,6.0418,3249.0,3248.9,0.15388]
[1765488233351,5.3897,3248.9,3248.8,0.0021959]
[1765488233546,5.3897,3248.9,3248.1,0.15392]
[1765488233547,5.3897,3248.2,3248.1,0.15392]
[1765488233750,8.5975,3248.2,3248.1,0.15392]
[1765488234049,3.2078,3248.6,3248.1,5.57382]
[1765488234252,3.2078,3248.6,3248.2,0.15391]
[1765488234452,3.21062354,3248.6,3248.2,0.15656034]
[1765488234652,5.3897,3248.3,3248.2,0.15656034]
[1765488235452,2.6845,3248.3,3248.2,2.95066034]
[1765488235852,2.6845,3248.3,3248.2,0.15656034]
[1765488236148,5.3897,3248.3,3248.2,0.15656034]
[1765488236355,3.21062354,3248.6,3248.2,5.57646034]
[1765488236554,2.6845,3248.3,3248.2,2.95066034]
[1765488236755,5.3897,3248.3,3248.2,0.15656034]
[1765488237755,2.6845,3248.3,3248.2,2.95066034]
[1765488237957,3.21062354,3248.6,3248.5,2.7941]
[1765488238443,5.89512354,3248.6,3248.5,2.7941]
[1765488239849,3.21062354,3248.6,3248.5,5.5738]
[1765488240450,0.00282354,3248.6,3248.5,5.5738]
[1765488240654,3.2078,3249.0,3248.9,5.57378]
[1765488241753,3.21168772,3249.0,3248.9,5.57378]
[1765488241953,0.00388772,3249.0,3248.9,5.57378]
[1765488242154,0.00388772,3249.0,3248.9,14.78158]
[1765488242354,3.2078,3249.9,3249.8,2.7941]
[1765488242556,5.8923,3249.9,3249.8,2.7941]
[1765488242756,2.6845,3249.8,3249.7,0.15384]
[1765488242955,2.6845,3249.8,3249.7,2.94794]
[1765488243354,0.00230231,3249.8,3249.7,5.57374]
[1765488243861,0.00230231,3249.8,3249.7,0.15384]
[1765488243862,5.39200231,3249.8,3249.7,0.15384]
[1765488244160,2.68680231,3249.8,3249.7,0.15384]
[1765488244361,0.00230231,3249.8,3249.7,2.94794]
[1765488245063,0.00230231,3249.8,3249.7,5.57374]
[1765488245462,0.00461489,3250.0,3249.7,5.57374]
[1765488245463,0.00461489,3250.0,3249.9,5.57373]
[1765488246360,3.21241489,3250.0,3249.9,5.57373]
[1765488246564,3.21581435,3250.0,3249.9,5.57373]
[1765488247862,0.00801435,3250.0,3249.9,5.57373]
[1765488248363,3.21581435,3250.0,3249.9,5.57373]
[1765488249560,3.21581435,3250.0,3249.9,8.78153]
[1765488249561,0.00801435,3250.0,3249.9,8.78153]
[1765488252564,3.2078,3251.1,3250.6,5.4199]
[1765488252771,3.2078,3251.1,3251.0,7.14568]
[1765488252965,5.8923,3251.1,3251.0,7.14568]
[1765488253166,8.5975,3251.1,3251.0,0.15378]
[1765488253363,3.2078,3251.1,3251.0,7.14568]
[1765488253665,3.2078,3251.6,3251.5,5.4199]
[1765488253971,3.20997885,3251.6,3251.5,5.57366]
[1765488254166,5.89447885,3251.6,3251.5,2.94786]
[1765488254670,8.59967885,3251.6,3251.5,0.15376]
[1765488255166,3.20997885,3251.6,3251.5,7.14566]
[1765488255867,5.39187885,3251.6,3251.5,0.15376]
[1765488256071,8.59967885,3251.6,3251.5,0.15376]
[1765488257866,2.6845,3251.1,3251.0,0.00232725]
[1765488258173,8.5975,3251.1,3251.0,0.00232725]
[1765488258670,14.5975,3251.1,3251.0,0.00232725]
[1765488258873,8.5975,3251.1,3251.0,0.00232725]
[1765488262776,5.1875,3250.2,3250.1,0.15382]
[1765488262973,5.1875,3249.5,3249.4,0.15386]
[1765488263176,2.5062,3249.5,3249.4,2.61126]
[1765488263476,5.1875,3249.5,3249.4,0.15386]
[1765488263872,5.1875,3249.2,3249.1,0.00461489]
[1765488264077,5.1875,3248.7,3248.6,0.15389]
[1765488264273,8.3953,3248.7,3248.6,0.15389]
[1765488264869,2.5062,3248.1,3247.6,3.2078]
[1765488265185,3.21241489,3248.2,3248.1,4.9457]
[1765488265373,0.00461489,3248.2,3248.1,4.9457]
[1765488266274,0.00461489,3248.2,3248.1,5.09962]
[1765488266478,0.00461489,3248.2,3248.1,0.15392]
[1765488266479,3.21241489,3248.2,3248.1,0.15392]
[1765488266778,5.71861489,3248.2,3248.1,0.15392]
[1765488267275,8.39991489,3248.2,3248.1,0.15392]
[1765488270682,8.39991489,3248.2,3247.6,0.00393155]
[1765488271479,5.1875,3247.7,3247.6,0.00393155]
[1765488271982,5.1875,3247.7,3247.6,2.46133155]
[1765488271983,2.5062,3247.7,3247.6,2.46133155]
[1765488272377,5.1875,3247.7,3247.6,0.00393155]
[1765488274876,3.2078,3247.8,3247.7,4.9457]
[1765488275582,3.2078,3247.8,3247.7,5.09964]
[1765488276086,8.3953,3247.8,3247.7,0.15394]
[1765488276678,5.19211489,3248.2,3248.1,2.61132]
[1765488276879,5.19211489,3248.2,3248.1,0.15392]
[1765488277587,8.39991489,3248.2,3248.1,0.15392]
[1765488279381,5.71861489,3248.2,3248.1,5.09962]
[1765488279986,8.39991489,3248.2,3248.1,0.15392]
[1765488280190,3.21241489,3248.2,3248.1,5.09962]
[1765488280583,0.00394959,3248.7,3248.1,5.09962]
[1765488280584,3.2078,3248.6,3248.5,6.6031]
[1765488280790,0.00394959,3248.7,3248.6,5.0996]
[1765488284488,0.00394959,3248.7,3248.6,11.0996]
[1765488284683,3.21241489,3249.0,3248.9,5.09958]
[1765488285590,3.21466859,3249.0,3248.9,5.09958]
[1765488286789,0.00686859,3249.0,3248.9,5.09958]
[1765488287698,3.2078,3249.5,3249.4,5.09956]
[1765488287889,1.4903,3250.5,3249.0,1.5035]
[1765488287890,3.2078,3249.9,3249.8,5.09954]
[1765488288792,3.2112689,3249.9,3249.8,5.09954]
[1765488289189,5.7174689,3249.9,3249.8,2.61124]
[1765488289492,7.9597689,3249.9,3249.8,2.61124]
[1765488289695,7.9597689,3249.9,3249.8,0.15384]
[1765488289896,5.7174689,3249.9,3249.8,2.59704]
[1765488290198,3.2112689,3249.9,3249.8,4.86484]
[1765488290789,7.8920689,3249.9,3249.8,0.15384]
[1765488292587,4.6808,3249.3,3249.2,0.15386]
[1765488292788,7.8886,3249.3,3249.2,0.15386]
[1765488293094,3.2078,3249.3,3249.2,4.86486]
[1765488293790,3.2078,3249.8,3249.7,2.2678]
[1765488293992,3.2078,3249.8,3249.7,4.711]
[1765488294285,3.2078,3249.8,3249.7,4.86484]
[1765488295190,7.8886,3249.8,3249.7,0.15384]
[1765488295790,2.4385,3249.1,3249.0,3.8217]
[1765488295992,3.2078,3249.4,3249.0,1.3785]
[1765488296191,2.4385,3249.1,3249.0,0.15388]
[1765488296594,4.6808,3249.1,3249.0,0.15388]
[1765488297495,7.8886,3249.4,3249.3,0.15386]
[1765488300501,7.8886,3249.4,3249.3,2.59706]
[1765488300795,3.2078,3249.4,3249.3,4.86486]
[1765488301095,0.0034689,3249.9,3249.3,4.86486]
[1765488301096,4.6842689,3249.9,3249.8,0.15384]
[1765488301504,0.0034689,3249.9,3249.8,4.86484]
[1765488303603,3.21241489,3250.2,3250.1,4.86482]
[1765488304704,3.21513188,3250.2,3250.1,4.86706012]
[1765488305797,7.89593188,3250.2,3250.1,0.15606012]
[1765488306100,5.65363188,3250.2,3250.1,2.59926012]
[1765488306305,3.21513188,3250.2,3250.1,4.86706012]
[1765488306603,5.65363188,3250.2,3250.1,4.86706012]
[1765488306803,5.65363188,3250.2,3250.1,2.59926012]
[1765488306999,7.89593188,3250.2,3250.1,0.15606012]
[1765488307306,3.21513188,3250.2,3250.1,4.86706012]
[1765488307707,0.00271699,3250.2,3250.1,4.86706012]
[1765488307906,2.4385,3250.2,3250.1,2.44544012]
[1765488308098,4.6808,3250.2,3250.1,0.15606012]
[1765488308900,2.44192471,3250.2,3250.1,0.15606012]
[1765488309101,0.00342471,3250.2,3250.1,2.59926012]
[1765488309308,0.00342471,3250.2,3250.1,4.86706012]
[1765488309806,0.00461489,3250.5,3250.4,4.86481]
[1765488310795,0.00717192,3250.5,3250.4,4.86481]
[1765488311201,7.89577192,3250.5,3250.4,0.15381]
[1765488311500,7.89577192,3250.5,3250.1,0.00224012]
[1765488311501,5.9038,3250.2,3250.1,0.00224012]
[1765488311703,4.6808,3249.6,3249.5,3.2078]
[1765488311905,4.6808,3249.1,3249.0,0.15388]
[1765488312404,2.4385,3249.1,3249.0,0.15388]
[1765488312800,2.4385,3249.1,3249.0,0.15667048]
[1765488313008,4.6808,3249.1,3249.0,0.15667048]
[1765488313301,4.5287,3249.6,3249.4,0.15386]
[1765488313302,4.6808,3249.5,3249.4,0.15386]
[1765488313495,2.4385,3249.5,3249.4,2.59706]
[1765488313699,5.6463,3249.6,3249.5,0.15385]
[1765488315105,7.8886,3249.6,3249.5,0.15385]
[1765488315498,3.2078,3249.6,3249.5,4.65425]
[1765488315705,5.381,3250.0,3249.9,0.15383]
[1765488317206,7.4931,3250.0,3249.9,0.15383]
[1765488317712,7.4931,3250.0,3249.1,3.36167]
[1765488317713,4.2853,3249.2,3249.1,3.36167]
[1765488318205,2.1732,3249.5,3249.1,3.2078]
[1765488318401,2.1732,3249.5,3249.4,2.2209]
[1765488318710,2.1732,3249.7,3249.6,0.15385]
[1765488319102,4.2853,3249.7,3249.6,0.15385]
[1765488320108,7.717,3250.0,3249.9,0.15383]
[1765488322707,1.032,3249.6,3248.0,2.69291449]
[1765488322916,2.27297601,3248.8,3248.5,0.1539]
[1765488323102,3.2078,3248.6,3248.5,0.1539]
[1765488323612,3.2078,3248.6,3248.5,0.15711123]
[1765488324409,3.2078,3248.6,3248.2,0.00461489]
[1765488324810,3.2078,3248.6,3248.5,0.1539]
[1765488325010,3.2078,3248.6,3248.2,0.00461489]
[1765488325416,3.2078,3248.6,3248.5,0.1539]
[1765488325610,3.2078,3248.6,3247.4,3.2078]
[1765488325807,3.2078,3247.6,3247.0,3.2078]
[1765488326010,3.2078,3247.6,3247.4,0.15395]
[1765488326711,3.21111741,3247.6,3247.4,0.15755398]
[1765488327914,3.21111741,3247.6,3247.5,0.15395]
[1765488329005,3.21111741,3247.6,3247.4,3.98e-06]
[1765488329208,3.21111741,3247.6,3247.2,0.00461489]
[1765488329209,3.21111741,3247.6,3247.2,1.489e-05]
[1765488329411,2.27297601,3247.3,3246.8,0.15398]
[1765488329618,3.2078,3246.9,3246.8,0.15398]
[1765488330318,3.2078,3246.9,3246.8,0.1574752]
[1765488332017,3.2078,3246.9,3246.8,4.5270752]
[1765488333015,3.2078,3246.9,3246.8,2.2805752]
[1765488333418,3.2078,3246.9,3246.8,4.5270752]
[1765488334416,0.00461489,3247.2,3247.1,4.52357]
[1765488336421,0.00461489,3247.2,3247.1,0.15397]
[1765488337023,0.00461489,3247.2,3247.1,4.52357]
[1765488337924,0.00461489,3247.2,3247.1,2.27707]
[1765488338218,0.00461489,3247.2,3247.1,4.52357]
[1765488339014,0.00331741,3247.6,3247.5,4.52355]
[1765488339618,0.00331741,3247.6,3247.5,5.83225]
[1765488339823,0.00331741,3247.6,3247.5,1.46265]
[1765488340431,3.21111741,3247.6,3247.5,1.46265]
[1765488341235,3.21111741,3247.6,3247.2,1.3087]
[1765488341532,2.27297601,3247.5,3247.2,1.3087]
[1765488341729,2.27297601,3247.5,3246.8,0.0034952]
[1765488341935,2.27297601,3246.9,3246.8,0.0034952]
[1765488342931,2.27297601,3246.9,3246.2,0.154]
[1765488343133,3.2078,3246.5,3246.4,2.1231]
[1765488343332,5.48077601,3246.5,3246.0,4.5165]
[1765488343730,3.2078,3246.5,3246.4,4.3696]
[1765488343932,3.2078,3246.9,3246.8,4.3696]
[1765488344734,0.00331741,3247.6,3247.5,4.52355]
[1765488348833,0.00331741,3247.6,3247.5,0.15395]
[1765488349029,0.00331741,3247.6,3247.5,5.13195]
[1765488349233,0.00331741,3247.6,3247.5,2.72915]
[1765488349636,0.00331741,3247.6,3247.5,0.15395]
[1765488351135,2.27297601,3247.3,3247.2,1.3087]
[1765488351345,5.48077601,3247.3,3247.2,1.3087]
[1765488353441,3.2078,3247.3,3247.2,4.03786]
[1765488353638,3.2078,3247.3,3247.2,6.44066]
[1765488354440,3.2078,3247.3,3247.2,4.03786]
[1765488354641,3.2078,3247.3,3247.2,1.46266]
[1765488354940,0.00331741,3247.6,3247.2,4.03786]
[1765488355145,3.2078,3247.3,3247.2,6.44066]
[1765488355348,0.00331741,3247.6,3247.5,2.5752]
[1765488355742,0.00331741,3247.6,3247.5,5.13195]
[1765488358345,0.00331741,3247.6,3247.5,0.15395]
[1765488358641,0.00331741,3247.6,3247.2,1.3087]
[1765488358846,5.48077601,3247.3,3247.2,1.3087]
[1765488359549,3.2078,3247.3,3247.2,1.3087]
[1765488360255,5.48077601,3247.3,3247.2,1.3087]
[1765488360451,5.48077601,3247.3,3246.6,1.3087]
[1765488360658,3.2078,3246.9,3246.6,1.3087]
[1765488360949,5.48077601,3246.9,3246.6,1.3087]
[1765488361757,3.2078,3246.9,3246.6,1.3087]
[1765488361949,3.2078,3246.9,3246.6,1.46269]
[1765488362456,3.2078,3246.9,3246.8,4.6629]
[1765488362852,3.2078,3246.9,3246.6,1.3087]
[1765488363460,3.2078,3246.9,3246.8,0.15398]
[1765488364057,3.2078,3246.9,3246.6,1.3087]
[1765488364357,3.2078,3246.9,3246.6,3.6931]
[1765488364552,3.2078,3246.9,3246.6,1.3087]
[1765488367557,0.9958,3246.2,3246.1,0.00461489]
[1765488367856,0.9958,3246.2,3246.1,4.82152489]
[1765488367857,3.2078,3246.2,3246.1,4.82152489]
[1765488368260,5.48077601,3246.8,3246.7,4.6629]
[1765488368454,5.48077601,3246.8,3246.7,4.81972263]
[1765488368856,3.2078,3247.3,3246.7,4.66573263]
[1765488369061,3.2078,3247.3,3247.2,4.81686]
[1765488370867,2.42901741,3247.6,3247.5,3.7637]
[1765488371059,0.00331741,3247.6,3247.5,6.19615]
[1765488371766,1.489e-05,3247.9,3247.8,4.81683]
[1765488371955,1.489e-05,3247.9,3247.5,7.3793]
[1765488371956,3.2078,3248.2,3248.1,4.81682]
[1765488372160,3.2078,3248.6,3248.1,4.81682]
[1765488372360,3.2078,3248.6,3248.2,0.15391]
[1765488372759,3.21113781,3248.6,3248.2,0.15391]
[1765488373561,2.4257,3248.3,3248.2,2.53831]
[1765488373756,4.78,3248.3,3248.2,0.15391]
[1765488373960,4.78,3248.2,3248.1,0.00461489]
[1765488374156,7.9878,3248.2,3247.5,1.53325]
[1765488374361,4.78,3247.6,3247.5,0.15395]
[1765488374562,2.4257,3247.6,3247.5,2.53835]
[1765488375659,3.2078,3248.2,3247.2,0.00461489]
[1765488375861,3.2078,3248.2,3247.8,1.3793]
[1765488378065,3.2078,3248.2,3247.8,1.53323]
[1765488379471,4.8722,3247.9,3247.8,1.53323]
[1765488380270,5.5344,3248.2,3248.1,2.4371]
[1765488380566,3.2078,3248.2,3248.1,4.7778]
[1765488380771,5.5344,3248.2,3248.1,4.7778]
[1765488380974,5.5344,3248.2,3247.9,0.15393]
[1765488381476,4.7004,3248.0,3247.9,0.15393]
[1765488385364,2.3266,3247.3,3247.2,0.15857489]
[1765488385569,4.7004,3247.3,3247.2,0.15857489]
[1765488385970,3.2078,3247.8,3247.5,1.4866]
[1765488386282,3.2078,3248.2,3247.7,4.93173]
[1765488386473,5.5344,3248.2,3248.1,2.4371]
[1765488386672,3.2078,3248.2,3248.1,4.7778]
[1765488386873,5.5344,3248.2,3248.1,4.7778]
[1765488387176,5.5344,3248.2,3248.1,2.4371]
[1765488387678,4.7004,3248.1,3248.0,1.64052]
[1765488387877,4.7004,3248.1,3248.0,0.15392]
[1765488388672,4.7004,3247.7,3247.6,0.15394]
[1765488389284,2.3266,3247.7,3247.6,2.59104]
[1765488389485,2.3266,3247.7,3247.6,4.93174]
[1765488390785,2.3266,3247.9,3247.8,2.59103]
[1765488390985,5.5344,3248.2,3248.1,2.4371]
[1765488391178,2.3266,3248.1,3248.0,3.9237]
[1765488391381,4.7004,3248.0,3247.9,0.15393]
[1765488392186,2.3266,3248.0,3247.9,2.59103]
[1765488392683,5.5344,3248.2,3248.1,4.7778]
[1765488392885,4.7004,3248.1,3248.0,1.64052]
[1765488393080,4.7004,3248.1,3248.0,0.15392]
[1765488393283,4.7004,3247.4,3247.3,0.15395]
[1765488393481,4.7004,3247.3,3247.2,0.00461489]
[1765488393881,4.7004,3247.3,3246.7,0.00283263]
[1765488393882,4.7004,3246.8,3246.7,0.00283263]
[1765488400391,4.7004,3246.5,3246.4,0.00307657]
[1765488400590,7.9082,3246.5,3246.4,0.00307657]
[1765488400986,4.7004,3246.2,3245.4,2.68647937]
[1765488401290,3.6061,3245.6,3245.5,1.4866]
[1765488401992,3.6061,3245.6,3245.5,3.9237]
[1765488402184,3.6061,3245.6,3245.5,6.2644]
[1765488402383,3.2078,3245.6,3245.5,6.41844]
[1765488403188,0.00346412,3246.2,3246.1,4.7778]
[1765488403391,3.21126412,3246.2,3246.1,4.7778]
[1765488404086,3.21126412,3246.2,3246.0,1.4866]
[1765488404087,4.7004,3246.1,3245.7,0.15403]
[1765488404387,3.21126412,3246.2,3245.7,0.15403]
[1765488404388,7.9082,3245.8,3245.7,0.15403]
[1765488405695,4.7004,3245.5,3245.4,0.00263511]
[1765488406496,3.2078,3245.8,3245.5,1.4866]
[1765488406690,2.3266,3245.6,3245.5,1.4866]
[1765488407090,4.7004,3245.6,3245.5,1.4866]
[1765488407293,4.7004,3245.6,3245.5,1.64064]
[1765488407494,2.3266,3245.6,3245.5,1.64064]
[1765488407895,3.2078,3245.8,3245.7,2.4371]
[1765488408197,3.2078,3245.8,3245.7,4.7778]
[1765488408397,5.5344,3245.8,3245.7,2.4371]
[1765488408591,3.2078,3245.8,3245.7,4.7778]
[1765488408895,3.2078,3245.8,3245.7,4.93183]
[1765488409296,3.2078,3245.8,3245.7,0.15403]
[1765488409297,5.6932,3245.8,3245.7,0.15403]
[1765488409688,5.6932,3245.8,3245.7,2.79653]
[1765488409895,3.2078,3245.8,3245.7,5.45683]
[1765488410797,3.21126412,3246.2,3246.1,5.45681]
[1765488411002,0.00461489,3247.1,3247.0,6.90677]
[1765488411193,4.7696,3248.4,3247.5,1.45]
[1765488411194,1.5618,3248.4,3247.5,1.45]
[1765488411389,2.4854,3247.5,3247.4,0.15395]
[1765488411594,3.2078,3248.0,3247.4,6.00425]
[1765488411995,3.21174255,3248.0,3247.4,6.00425]
[1765488412195,3.21635744,3248.0,3247.4,6.00425]
[1765488413099,2.4854,3247.5,3247.4,3.36175]
[1765488413295,3.21635744,3248.0,3247.4,6.00425]
[1765488413997,5.0757,3247.5,3247.4,3.36175]
[1765488414297,2.4854,3247.5,3247.4,3.36175]
[1765488414799,5.0757,3247.5,3247.4,3.2078]
[1765488415001,2.64776487,3247.7,3246.9,3.2078]
[1765488415002,5.0757,3247.0,3246.9,3.2078]
[1765488415201,1.4503,3246.1,3246.0,1.45]
[1765488415598,4.65348511,3246.1,3246.0,1.45]
[1765488416198,3.20318511,3246.1,3246.0,4.0925]
[1765488417600,3.20318511,3246.1,3246.0,4.24652]
[1765488417794,3.20318511,3246.1,3246.0,1.60402]
[1765488418000,0.00461489,3246.4,3246.3,2.6425]
[1765488418204,0.00461489,3246.4,3246.3,5.4568]
[1765488418403,3.2078,3246.4,3246.3,5.4568]
[1765488419205,0.00461489,3246.4,3246.3,5.4568]
[1765488420303,3.2078,3246.4,3246.3,5.4568]
[1765488421905,0.00461489,3246.4,3246.3,5.4568]
[1765488422100,1.8246,3247.1,3247.0,0.15397]
[1765488422408,3.2078,3247.2,3247.0,2.79647]
[1765488422998,3.2078,3247.2,3247.0,0.15397]
[1765488422999,3.62,3247.1,3247.0,0.15397]
[1765488423403,1.8246,3247.1,3247.0,0.15397]
[1765488423798,3.2078,3247.2,3247.1,5.45677]
[1765488423999,0.00461489,3247.4,3247.1,5.45677]
[1765488424000,0.00461489,3247.4,3247.3,5.45676]